bitfinex/quotes_SOLUSD_20250207
["timestamp","ask_amount","ask_price","bid_price","bid_amount"]
[1738970984187,10.46285579,191.82,191.79,5.214]
[1738970984497,10.46285579,191.82,191.78,11.5335]
[1738970984679,10.46285579,191.83,191.78,11.5335]
[1738970984998,0.03,191.84,191.81,10.46285579]
[1738970985177,0.03,191.84,191.83,10.46285579]
[1738970985780,0.03,191.84,191.83,15.67575579]
[1738970988687,0.03,191.84,191.83,21.52202558]
[1738970989628,0.03,191.84,191.83,5.2129]
[1738970990886,0.03,191.84,191.81,16.30912558]
[1738970991086,0.03,191.84,191.82,5.2132]
[1738970992527,16.30912558,191.83,191.77,1.5141]
[1738970992734,16.30912558,191.81,191.74,16.30912558]
[1738970993028,16.30912558,191.8,191.74,5.2151]
[1738970993406,16.30912558,191.79,191.73,13.5011]
[1738970993720,16.30912558,191.78,191.73,6.8452]
[1738970994826,16.30912558,191.79,191.73,6.8452]
[1738970995919,13.41184853,191.83,191.73,0.063]
[1738970995920,16.30912558,191.77,191.73,0.063]
[1738970996220,16.30912558,191.79,191.73,0.063]
[1738970997027,16.30912558,191.78,191.73,0.063]
[1738970998021,21.52342558,191.78,191.73,0.063]
[1738970998317,21.52272558,191.81,191.74,16.30912558]
[1738970999498,16.30912558,191.79,191.73,5.2785]
[1738971000598,21.52272558,191.81,191.74,16.30912558]
[1738971000795,16.30912558,191.81,191.74,16.30912558]
[1738971001901,16.30912558,191.81,191.75,5.2151]
[1738971004328,16.30912558,191.83,191.77,16.30912558]
[1738971004702,21.52232558,191.82,191.75,21.52422558]
[1738971005237,16.30912558,191.82,191.75,21.52422558]
[1738971005532,16.30912558,191.81,191.75,5.2151]
[1738971005742,5.213,191.83,191.73,0.063]
[1738971005743,16.30912558,191.76,191.73,0.063]
[1738971006532,16.30912558,191.74,191.73,0.063]
[1738971008023,21.52442558,191.74,191.73,0.063]
[1738971008497,35.18725411,191.74,191.73,0.063]
[1738971008696,13.53733853,191.7,191.61,0.063]
[1738971008915,16.30912558,191.64,191.61,0.063]
[1738971009133,16.30912558,191.62,191.61,0.063]
[1738971010322,21.52772558,191.62,191.61,0.063]
[1738971010624,16.30912558,191.62,191.61,0.063]
[1738971010824,35.06506411,191.62,191.61,0.063]
[1738971011127,21.52772558,191.62,191.61,0.063]
[1738971011625,35.06506411,191.62,191.61,0.063]
[1738971013620,35.19055411,191.62,191.61,0.063]
[1738971014232,20.12549,191.58,191.56,0.063]
[1738971014522,29.97195411,191.57,191.56,0.063]
[1738971015441,16.30912558,191.59,191.56,0.063]
[1738971016846,0.9575427,191.62,191.53,0.063]
[1738971016847,13.41184853,191.6,191.54,16.30912558]
[1738971017653,16.30912558,191.61,191.55,5.2205]
[1738971018419,16.30912558,191.58,191.53,0.063]
[1738971018650,16.30912558,191.57,191.53,0.063]
[1738971018852,0.12549,191.6,191.53,0.063]
[1738971018853,16.30912558,191.56,191.53,0.063]
[1738971020453,34.94097411,191.57,191.53,0.063]
[1738971020655,16.30912558,191.56,191.53,0.063]
[1738971021641,16.30912558,191.54,191.53,0.063]
[1738971021831,29.97195411,191.54,191.53,0.063]
[1738971022225,29.72097411,191.54,191.53,0.063]
[1738971022863,16.30912558,191.54,191.53,0.063]
[1738971023162,16.30912558,191.56,191.53,0.063]
[1738971023939,16.30912558,191.55,191.53,0.063]
[1738971024448,16.30912558,191.54,191.53,0.063]
[1738971025667,35.19275411,191.54,191.53,0.063]
[1738971025834,20.25098,191.5,191.43,1.5577]
[1738971026030,16.30912558,191.47,191.43,1.5577]
[1738971026528,16.30912558,191.48,191.43,6.7814]
[1738971026742,16.30912558,191.5,191.43,23.09052558]
[1738971027337,16.30912558,191.49,191.43,6.7814]
[1738971027540,16.30912558,191.5,191.43,23.09052558]
[1738971028662,16.30912558,191.5,191.43,6.7814]
[1738971030358,5.2219,191.51,191.43,6.7814]
[1738971030359,21.53102558,191.51,191.43,23.09052558]
[1738971030656,16.30912558,191.53,191.45,16.30912558]
[1738971030859,17.26666828,191.54,191.47,16.30912558]
[1738971031061,16.30912558,191.58,191.51,16.30912558]
[1738971031630,13.41184853,191.58,191.51,16.30912558]
[1738971032036,16.30912558,191.59,191.51,16.30912558]
[1738971032370,20.7962,191.64,191.57,16.30912558]
[1738971032371,16.30912558,191.64,191.57,16.30912558]
[1738971032533,16.30912558,191.65,191.58,16.30912558]
[1738971033046,16.30912558,191.64,191.57,16.30912558]
[1738971033832,16.30912558,191.64,191.58,5.2197]
[1738971034268,16.30912558,191.63,191.58,5.2197]
[1738971034458,16.30912558,191.64,191.58,5.2197]
[1738971034659,16.30912558,191.65,191.58,21.52882558]
[1738971035165,16.30912558,191.64,191.58,5.2197]
[1738971036771,16.30912558,191.64,191.57,16.30912558]
[1738971036941,16.30912558,191.61,191.56,5.2202]
[1738971038068,16.30912558,191.62,191.55,16.30912558]
[1738971040461,16.30912558,191.62,191.55,36.30912558]
[1738971040639,16.30912558,191.62,191.56,5.2202]
[1738971042066,16.33912558,191.64,191.57,16.30912558]
[1738971042269,16.33912558,191.64,191.61,16.30912558]
[1738971042270,0.03,191.64,191.61,16.30912558]
[1738971042434,0.03,191.64,191.62,16.30912558]
[1738971042635,0.03,191.64,191.63,16.30912558]
[1738971043361,16.30912558,191.73,191.63,16.30912558]
[1738971043362,16.30912558,191.74,191.63,153.70912558]
[1738971043564,16.30912558,191.76,191.69,16.30912558]
[1738971043734,8.18722644,191.78,191.72,16.30912558]
[1738971043932,8.18722644,191.78,191.77,16.30912558]
[1738971044134,8.18722644,191.78,191.77,21.52362558]
[1738971044365,8.21722644,191.8,191.77,21.52362558]
[1738971044551,8.21722644,191.8,191.78,16.30912558]
[1738971044871,8.21722644,191.8,191.78,26.1089088]
[1738971045235,8.21722644,191.8,191.79,26.1089088]
[1738971045637,8.21722644,191.8,191.78,26.1089088]
[1738971046339,0.03,191.8,191.78,26.1089088]
[1738971046544,0.03,191.8,191.78,31.3230088]
[1738971047583,0.03,191.8,191.79,26.1089088]
[1738971047875,0.03,191.8,191.79,164.29089902]
[1738971048069,0.03,191.81,191.8,26.1089088]
[1738971049969,0.03,191.81,191.8,31.3226088]
[1738971051479,0.03,191.81,191.8,5.2137]
[1738971051840,0.03,191.81,191.77,31.3233088]
[1738971053267,0.03,191.81,191.78,26.1089088]
[1738971053442,0.03,191.81,191.79,26.1089088]
[1738971053645,0.03,191.81,191.8,26.1089088]
[1738971055148,0.03,191.81,191.8,31.3226088]
[1738971056369,0.03,191.81,191.8,5.2137]
[1738971056673,0.03,191.81,191.78,5.2143]
[1738971060675,0.03,191.81,191.79,26.1089088]
[1738971060888,0.03,191.81,191.8,26.1089088]
[1738971061180,0.03,191.82,191.8,26.1089088]
[1738971061357,0.03,191.82,191.81,32.10404947]
[1738971061558,0.03,191.82,191.81,169.50404947]
[1738971061854,0.03,191.82,191.81,168.7223088]
[1738971067190,0.03,191.84,191.83,26.8578]
[1738971067368,0.03,191.84,191.83,60.37541751]
[1738971068561,0.03,191.85,191.84,26.1089088]
[1738971068763,0.03,191.85,191.84,163.5089088]
[1738971069271,0.03,191.85,191.84,168.7215088]
[1738971072302,0.5,191.94,191.92,26.1089088]
[1738971073321,0.5,191.94,191.93,31.3191088]
[1738971073494,0.5,191.94,191.93,32.9640088]
[1738971074608,0.5,191.94,191.9,137.4]
[1738971074807,0.5,191.94,191.9,142.6109]
[1738971074985,0.5,191.94,191.9,168.7198088]
[1738971075292,0.5,191.94,191.91,26.1089088]
[1738971075496,0.5,191.94,191.92,26.1089088]
[1738971075696,0.5,191.94,191.93,26.1089088]
[1738971076285,0.5,191.94,191.92,26.1089088]
[1738971076893,0.5,191.94,191.91,26.1089088]
[1738971077202,0.5,191.94,191.9,137.4]
[1738971077395,26.1089088,191.93,191.9,137.4]
[1738971078199,26.1089088,191.93,191.87,5.2116]
[1738971078998,26.6089088,191.94,191.87,5.2116]
[1738971079800,26.1089088,191.93,191.87,5.2116]
[1738971080000,26.1089088,191.92,191.86,137.4]
[1738971080212,26.1089088,191.91,191.86,137.4]
[1738971080708,26.1089088,191.91,191.83,27.7538088]
[1738971080888,26.1089088,191.9,191.83,32.9666088]
[1738971081305,31.3199088,191.9,191.83,5.2128]
[1738971081481,26.1089088,191.89,191.81,168.7851088]
[1738971081683,26.1089088,191.88,191.81,168.7851088]
[1738971082584,26.1089088,191.85,191.81,0.063]
[1738971082908,26.1089088,191.9,191.81,0.063]
[1738971082909,26.1089088,191.83,191.81,0.063]
[1738971083395,26.1089088,191.84,191.81,0.063]
[1738971084183,26.1089088,191.83,191.81,0.063]
[1738971084876,26.1089088,191.84,191.81,0.063]
[1738971086004,39.64624733,191.82,191.81,0.063]
[1738971087411,44.85944733,191.82,191.81,0.063]
[1738971088690,31.3221088,191.82,191.81,0.063]
[1738971088890,26.1089088,191.82,191.81,0.063]
[1738971090393,31.3221088,191.82,191.81,0.063]
[1738971092102,44.85944733,191.82,191.81,0.063]
[1738971096316,31.3221088,191.82,191.81,0.063]
[1738971098221,5.2132,191.82,191.81,0.063]
[1738971098542,31.3221088,191.82,191.81,0.063]
[1738971099293,44.85944733,191.82,191.81,0.063]
[1738971100303,72.09384613,191.82,191.78,0.063]
[1738971100508,46.1089088,191.79,191.78,0.063]
[1738971100816,51.3229088,191.79,191.78,0.063]
[1738971102017,26.1089088,191.79,191.78,0.063]
[1738971102218,31.3229088,191.79,191.78,0.063]
[1738971102517,44.86024733,191.79,191.78,0.063]
[1738971103626,44.98573733,191.79,191.78,0.0001]
[1738971106024,46.98573733,191.79,191.78,0.0001]
[1738971106210,20.25098,191.75,191.67,1.5126]
[1738971106407,26.1089088,191.71,191.67,1.5126]
[1738971107426,26.1089088,191.72,191.67,1.5126]
[1738971107810,39.52075733,191.73,191.67,6.7928]
[1738971108009,13.41184853,191.73,191.67,6.7928]
[1738971108216,26.1089088,191.72,191.67,6.7928]
[1738971109223,26.1089088,191.71,191.67,1.5756]
[1738971109423,13.0368,191.77,191.67,1.5756]
[1738971109647,31.3232088,191.78,191.71,26.1089088]
[1738971109819,32.2804515,191.79,191.72,26.1089088]
[1738971110004,26.1089088,191.79,191.72,26.1089088]
[1738971110204,26.1089088,191.8,191.73,31.3245088]
[1738971110405,26.1089088,191.8,191.73,5.2156]
[1738971110634,16.32770899,191.79,191.73,5.2156]
[1738971111127,16.32770899,191.79,191.71,16.32770899]
[1738971111310,16.32770899,191.77,191.7,16.32770899]
[1738971111515,16.32770899,191.77,191.69,21.54440899]
[1738971112150,16.32770899,191.77,191.7,16.32770899]
[1738971112611,26.12934381,191.77,191.7,26.12934381]
[1738971113231,26.12934381,191.79,191.72,26.12934381]
[1738971113532,26.12934381,191.81,191.74,26.12934381]
[1738971113929,13.41184853,191.8,191.73,26.12934381]
[1738971115233,26.12934381,191.84,191.76,27.70264381]
[1738971115415,26.12934381,191.84,191.77,26.12934381]
[1738971115610,26.12934381,191.82,191.76,138.9733]
[1738971115812,26.12934381,191.81,191.76,138.9733]
[1738971117728,26.12934381,191.81,191.76,144.1879]
[1738971118237,26.12934381,191.83,191.76,144.1879]
[1738971118434,26.12934381,191.83,191.76,32.91724381]
[1738971118640,0.03,191.85,191.79,26.12934381]
[1738971119716,0.03,191.85,191.8,5.2137]
[1738971120131,0.03,191.85,191.82,26.12934381]
[1738971120318,0.03,191.83,191.82,238.2]
[1738971121735,0.03,191.83,191.82,243.4132]
[1738971123143,0.03,191.83,191.82,269.54254381]
[1738971123736,0.03,191.83,191.82,243.4132]
[1738971124518,0.03,191.83,191.82,269.54254381]
[1738971128348,0.03,191.85,191.84,27.71644381]
[1738971128648,0.03,191.85,191.84,246.69801808]
[1738971128832,0.03,191.85,191.84,245.91644381]
[1738971129144,0.03,191.85,191.84,80.8]
[1738971129317,0.03,191.85,191.82,149.1225]
[1738971129518,0.03,191.85,191.82,11.7225]
[1738971131041,0.03,191.85,191.8,1.5871]
[1738971131240,0.03,191.85,191.81,5.2134]
[1738971132232,0.03,191.85,191.8,137.4]
[1738971132442,26.12934381,191.81,191.8,137.4]
[1738971132650,26.12934381,191.81,191.77,229.9238]
[1738971134147,26.12934381,191.82,191.77,229.9238]
[1738971134645,0.03,191.85,191.79,16.31979729]
[1738971134849,0.03,191.85,191.82,16.31979729]
[1738971135228,0.03,191.85,191.81,16.31979729]
[1738971135552,0.03,191.85,191.79,218.2]
[1738971135868,0.03,191.85,191.8,21.53349729]
[1738971136036,0.03,191.85,191.8,5.2137]
[1738971137245,0.03,191.85,191.8,21.53349729]
[1738971138758,0.03,191.85,191.81,16.31979729]
[1738971139746,0.03,191.85,191.81,234.51979729]
[1738971140248,0.03,191.85,191.82,16.31979729]
[1738971140425,0.03,191.85,191.83,5.2129]
[1738971140630,0.03,191.85,191.83,142.6129]
[1738971140943,0.03,191.85,191.84,16.31979729]
[1738971142230,0.03,191.85,191.84,234.51979729]
[1738971142651,0.03,191.85,191.84,218.2]
[1738971144249,0.03,191.85,191.84,223.4126]
[1738971144550,0.03,191.85,191.84,239.73239729]
[1738971146953,0.03,191.85,191.84,223.4126]
[1738971147670,0.03,191.85,191.84,239.73239729]
[1738971152766,0.03,191.85,191.84,223.4126]
[1738971155250,0.03,191.85,191.84,86.0126]
[1738971158377,0.03,191.85,191.84,223.4126]
[1738971161081,16.34979729,191.85,191.8,137.463]
[1738971162150,0.03,191.85,191.8,142.6766]
[1738971162350,0.03,191.85,191.81,16.31979729]
[1738971162769,0.03,191.85,191.8,158.99639729]
[1738971166755,16.34979729,191.85,191.8,137.463]
[1738971166962,16.31979729,191.84,191.8,137.463]
[1738971169578,16.31979729,191.84,191.8,0.063]
[1738971169579,13.41184853,191.83,191.8,0.063]
[1738971169879,29.73164582,191.83,191.8,0.063]
[1738971170194,21.53299729,191.82,191.8,0.063]
[1738971171078,16.39580669,191.93,191.84,0.12549]
[1738971171257,16.39580669,191.93,191.91,16.31979729]
[1738971171464,16.39580669,191.93,191.91,153.71979729]
[1738971171886,16.39580669,191.93,191.91,137.4]
[1738971173280,32.71560398,191.93,191.91,137.4]
[1738971173470,16.31979729,191.93,191.91,137.4]
[1738971175082,22.02979729,191.94,191.91,137.4]
[1738971175978,16.31979729,191.92,191.91,137.4]
[1738971176164,16.31979729,191.92,191.86,142.6121]
[1738971178971,0.03,191.93,191.89,5.2113]
[1738971180983,0.03,191.93,191.89,158.93109729]
[1738971181492,0.03,191.93,191.9,16.31979729]
[1738971181790,0.03,191.93,191.92,16.31979729]
[1738971182484,0.03,191.93,191.91,16.31979729]
[1738971182785,0.03,191.93,191.91,5.2107]
[1738971184607,0.03,191.93,191.91,21.53049729]
[1738971185171,0.03,191.93,191.91,239.73049729]
[1738971187593,0.03,191.93,191.92,17.10114388]
[1738971187996,0.03,191.93,191.92,16.31979729]
[1738971188777,0.03,191.93,191.92,21.53029729]
[1738971188972,0.03,191.93,191.92,240.51164908]
[1738971189183,0.03,191.93,191.92,239.73029729]
[1738971190780,0.03,191.93,191.92,223.4105]
[1738971194405,0.03,191.93,191.92,239.73029729]
[1738971196614,0.03,191.93,191.92,223.4105]
[1738971197081,0.03,191.93,191.92,239.73029729]
[1738971198485,0.47,191.94,191.92,239.73029729]
[1738971198684,0.47,191.94,191.93,17.10098665]
[1738971199787,0.47,191.94,191.93,22.31118665]
[1738971201682,0.47,191.94,191.93,240.51118665]
[1738971201888,0.47,191.94,191.93,239.72999729]
[1738971202283,0.03,191.97,191.93,252.75549729]
[1738971202505,0.03,191.97,191.96,16.31979729]
[1738971202721,0.0001,191.97,191.96,16.31979729]
[1738971203782,0.0001,191.97,191.96,21.52919729]
[1738971204502,0.0001,191.97,191.96,239.72919729]
[1738971205040,0.0001,191.97,191.96,223.4094]
[1738971205206,0.0001,191.97,191.96,218.2]
[1738971207240,0.0001,191.97,191.96,223.4094]
[1738971207933,0.0001,191.97,191.96,239.72919729]
[1738971208449,0.0001,191.97,191.96,223.4094]
[1738971211531,0.0001,191.97,191.96,218.2]
[1738971214327,0.0001,191.97,191.96,239.72919729]
[1738971215023,0.0001,191.97,191.96,239.79219729]
[1738971216144,0.0001,191.97,191.96,223.4724]
[1738971217737,0.0001,191.97,191.96,239.79219729]
[1738971218536,0.0001,191.97,191.96,223.4724]
[1738971218942,16.31989729,191.97,191.96,0.063]
[1738971220214,0.0001,191.97,191.96,0.063]
[1738971220414,0.0001,191.97,191.96,158.99219729]
[1738971222626,0.0001,191.97,191.96,142.6724]
[1738971223331,0.0001,191.97,191.96,137.463]
[1738971223742,0.0001,191.97,191.96,142.6724]
[1738971230743,0.0001,191.97,191.96,158.99219729]
[1738971232444,0.0001,191.97,191.96,142.6724]
[1738971246765,0.0001,191.97,191.96,153.09500533]
[1738971253976,0.0001,191.97,191.96,142.6724]
[1738971254446,0.0001,191.97,191.96,153.09500533]
[1738971256078,0.0001,191.97,191.96,142.6724]
[1738971256283,0.0001,191.97,191.96,137.463]
[1738971256480,0.0001,191.97,191.96,0.063]
[1738971256780,10.42270533,191.97,191.96,0.063]
[1738971258697,0.0001,191.97,191.96,0.063]
[1738971264390,10.42270533,191.97,191.96,0.063]
[1738971266568,0.0001,191.97,191.96,0.063]
[1738971267383,10.42270533,191.97,191.96,0.063]
[1738971275712,15.63180533,191.97,191.96,0.063]
[1738971281502,10.42270533,191.97,191.96,0.063]
[1738971286033,0.0001,191.97,191.96,0.063]
[1738971291211,10.42270533,191.97,191.96,0.063]
[1738971294308,0.0001,191.97,191.96,0.063]
[1738971298007,0.0001,191.97,191.96,137.463]
[1738971298216,10.42270533,191.97,191.96,137.463]
[1738971299421,0.0001,191.97,191.96,137.463]
[1738971302698,10.42270533,191.97,191.96,137.463]
[1738971304004,10.42270533,191.97,191.96,0.063]
[1738971304613,15.63180533,191.97,191.96,0.063]
[1738971305626,29.16914386,191.97,191.96,0.063]
[1738971306422,29.29463386,191.97,191.96,0.063]
[1738971309100,20.25098,191.93,191.92,0.063]
[1738971309300,0.12549,191.91,191.85,137.463]
[1738971309507,10.42260533,191.86,191.85,0.063]
[1738971310120,15.63470533,191.86,191.85,0.063]
[1738971310325,29.29753386,191.86,191.85,0.063]
[1738971310503,20.0,191.83,191.76,80.863]
[1738971310708,10.42260533,191.81,191.76,218.263]
[1738971311904,15.63600533,191.81,191.76,218.263]
[1738971314213,13.53733853,191.77,191.76,0.063]
[1738971314530,24.08543386,191.77,191.76,0.063]
[1738971315532,0.12549,191.76,191.72,0.063]
[1738971315906,10.42260533,191.73,191.72,0.063]
[1738971316804,24.08543386,191.73,191.72,0.063]
[1738971317624,29.30103386,191.73,191.72,0.063]
[1738971317921,0.25098,191.69,191.67,0.063]
[1738971318129,23.95994386,191.68,191.67,0.063]
[1738971318329,24.08543386,191.68,191.67,0.063]
[1738971319631,30.30243386,191.68,191.67,0.063]
[1738971319834,31.30243386,191.68,191.67,0.063]
[1738971320521,0.12549,191.64,191.6,0.063]
[1738971320720,10.42260533,191.62,191.6,0.063]
[1738971321109,10.42260533,191.63,191.6,0.063]
[1738971324634,10.42260533,191.64,191.6,0.063]
[1738971324937,10.42260533,191.68,191.62,10.42260533]
[1738971325119,10.42260533,191.69,191.62,147.82260533]
[1738971325427,10.42260533,191.69,191.63,10.42260533]
[1738971326223,10.42260533,191.69,191.63,5.2183]
[1738971326637,10.42260533,191.69,191.63,15.64090533]
[1738971326831,10.42260533,191.7,191.64,10.42260533]
[1738971327711,10.42260533,191.72,191.65,10.42260533]
[1738971327912,10.42260533,191.72,191.66,12.06220533]
[1738971329011,10.42260533,191.72,191.67,5.2173]
[1738971329513,10.42260533,191.71,191.67,5.2173]
[1738971331315,10.42260533,191.7,191.67,5.2173]
[1738971331717,10.42260533,191.71,191.67,5.2173]
[1738971332531,10.42260533,191.69,191.66,1.7026]
[1738971332728,10.42260533,191.67,191.66,1.7026]
[1738971332938,10.42260533,191.67,191.66,137.463]
[1738971333123,10.42260533,191.67,191.66,0.063]
[1738971334636,10.42260533,191.68,191.66,0.063]
[1738971335027,10.42260533,191.7,191.66,0.063]
[1738971335232,10.42260533,191.7,191.66,137.463]
[1738971336223,10.42260533,191.69,191.66,137.463]
[1738971337739,10.42260533,191.7,191.66,137.463]
[1738971338543,10.42260533,191.69,191.66,137.463]
[1738971339027,10.42260533,191.7,191.66,137.463]
[1738971341050,10.42260533,191.69,191.66,137.463]
[1738971341625,10.42260533,191.68,191.66,137.463]
[1738971341825,10.42260533,191.69,191.66,137.463]
[1738971345542,10.42260533,191.69,191.66,0.063]
[1738971346227,10.42260533,191.69,191.64,124.55137862]
[1738971347244,10.42260533,191.69,191.65,5.2177]
[1738971347940,10.42260533,191.69,191.64,124.55137862]
[1738971348149,10.42260533,191.68,191.64,124.55137862]
[1738971348823,10.42260533,191.68,191.64,129.76947862]
[1738971349217,10.42260533,191.69,191.64,129.76947862]
[1738971351035,15.63930533,191.69,191.64,124.55137862]
[1738971351347,10.42260533,191.69,191.64,129.76937862]
[1738971353147,10.42260533,191.68,191.64,129.76937862]
[1738971354449,10.42260533,191.69,191.64,129.76937862]
[1738971355047,10.42260533,191.65,191.63,80.8]
[1738971355944,0.03,191.73,191.67,20.0]
[1738971356140,10.42260533,191.82,191.72,16.59960533]
[1738971356337,9.82592644,191.87,191.76,10.42260533]
[1738971356542,10.42260533,191.85,191.78,10.42260533]
[1738971357643,30.42260533,191.84,191.78,10.42260533]
[1738971357860,30.42260533,191.84,191.77,15.63710533]
[1738971358152,13.39902644,191.87,191.77,15.63710533]
[1738971358153,8.18722644,191.87,191.81,10.42260533]
[1738971358455,0.03,191.89,191.85,15.63500533]
[1738971358651,0.03,191.89,191.86,16.30422137]
[1738971358858,0.03,191.89,191.87,16.30422137]
[1738971359361,0.03,191.89,191.88,16.30422137]
[1738971360638,0.03,191.89,191.88,21.51572137]
[1738971363353,0.03,191.89,191.88,226.86709999]
[1738971366956,0.03,191.89,191.88,221.65559999]
[1738971367136,0.03,191.89,191.88,205.35137862]
[1738971370471,0.03,191.89,191.88,226.86709999]
[1738971370936,0.03,191.89,191.88,205.35137862]
[1738971373844,16.33422137,191.89,191.88,205.35137862]
[1738971376467,0.03,191.89,191.88,205.35137862]
[1738971376647,16.33422137,191.89,191.88,205.35137862]
[1738971376849,21.54552137,191.89,191.84,205.35137862]
[1738971377057,16.30422137,191.85,191.82,124.55137862]
[1738971377380,16.30422137,191.83,191.77,210.56567862]
[1738971377595,16.30422137,191.82,191.77,205.35137862]
[1738971377957,16.30422137,191.83,191.77,205.35137862]
[1738971378574,16.30422137,191.82,191.77,205.35137862]
[1738971378754,16.30422137,191.81,191.77,205.35137862]
[1738971379775,16.30422137,191.83,191.77,205.35137862]
[1738971380089,16.33422137,191.89,191.82,16.30422137]
[1738971380259,0.03,191.89,191.83,16.30422137]
[1738971380453,0.03,191.89,191.84,16.30422137]
[1738971382378,0.03,191.89,191.84,21.51672137]
[1738971382581,0.03,191.89,191.83,21.51712137]
[1738971383590,16.33422137,191.89,191.83,5.2129]
[1738971384291,16.33422137,191.89,191.83,210.56427862]
[1738971384894,16.33422137,191.89,191.83,226.86849999]
[1738971385898,16.33422137,191.89,191.83,210.56427862]
[1738971386301,21.54552137,191.89,191.83,210.56427862]
[1738971386591,16.33422137,191.89,191.83,210.56427862]
[1738971386798,16.30422137,191.88,191.83,210.56427862]
[1738971387181,16.30422137,191.86,191.83,205.35137862]
[1738971387381,16.30422137,191.88,191.83,210.56417862]
[1738971388186,16.30422137,191.87,191.83,205.35137862]
[1738971389197,16.30422137,191.85,191.83,80.8]
[1738971389980,16.30422137,191.88,191.83,80.8]
[1738971390208,0.03,191.87,191.83,80.8]
[1738971390866,16.33422137,191.87,191.83,80.8]
[1738971392716,0.03,191.87,191.83,80.8]
[1738971393206,0.03,191.87,191.83,221.65559999]
[1738971393713,0.03,191.87,191.83,226.86849999]
[1738971395890,0.03,191.87,191.83,210.56427862]
[1738971396398,16.33422137,191.87,191.83,205.35137862]
[1738971396783,16.30422137,191.86,191.83,205.35137862]
[1738971397020,16.30422137,191.85,191.83,205.35137862]
[1738971397311,16.30422137,191.86,191.83,205.35137862]
[1738971398601,16.33422137,191.87,191.83,205.35137862]
[1738971399616,16.30422137,191.86,191.83,205.35137862]
[1738971401222,16.30422137,191.85,191.83,205.35137862]
[1738971401405,16.30422137,191.84,191.83,205.35137862]
[1738971405020,16.30422137,191.84,191.83,80.8]
[1738971408596,10.4448282,191.84,191.83,80.8]
[1738971410923,10.4448282,191.84,191.8,205.35137862]
[1738971413418,5.2124,191.85,191.8,205.35137862]
[1738971413620,15.6572282,191.85,191.8,205.35137862]
[1738971418322,15.6572282,191.85,191.8,210.56507862]
[1738971420325,5.2124,191.85,191.8,210.56507862]
[1738971420925,10.4448282,191.85,191.8,210.56507862]
[1738971422124,15.6572282,191.85,191.8,210.56507862]
[1738971424333,10.4448282,191.86,191.8,210.56507862]
[1738971424540,0.03,191.85,191.8,210.56507862]
[1738971426730,0.03,191.85,191.8,205.35137862]
[1738971431728,0.03,191.85,191.8,221.00980682]
[1738971432646,0.03,191.85,191.82,10.4448282]
[1738971432812,0.03,191.85,191.84,10.4448282]
[1738971433327,0.03,191.85,191.83,1.6241]
[1738971433641,0.03,191.85,191.81,124.55137862]
[1738971433827,0.03,191.85,191.81,210.56477862]
[1738971434335,0.03,191.85,191.83,10.4448282]
[1738971434513,0.03,191.85,191.84,11.22643691]
[1738971435616,0.03,191.85,191.84,16.43903691]
[1738971436013,0.03,191.85,191.84,221.00880682]
[1738971436316,0.0001,191.85,191.84,242.57715535]
[1738971439338,0.03,191.87,191.86,20.0]
[1738971439530,0.03,191.87,191.86,30.4448282]
[1738971440232,0.03,191.87,191.85,10.4448282]
[1738971440433,0.03,191.87,191.84,218.72047862]
[1738971440434,0.03,191.87,191.84,229.16530682]
[1738971441222,0.03,191.87,191.84,212.18807862]
[1738971442143,0.03,191.87,191.85,10.4448282]
[1738971442642,0.03,191.87,191.84,212.18807862]
[1738971443941,0.03,191.87,191.84,210.56397862]
[1738971448665,0.03,191.87,191.84,221.00880682]
[1738971448949,0.03,191.87,191.86,15.6569282]
[1738971449946,0.03,191.87,191.86,5.2121]
[1738971451224,0.03,191.87,191.84,215.85920682]
[1738971451552,0.03,191.87,191.85,5.2123]
[1738971452546,0.03,191.87,191.85,210.56367862]
[1738971453550,0.03,191.87,191.85,221.00850682]